bitfinex/quotes_SOLUSD_20250908
["timestamp","ask_amount","ask_price","bid_price","bid_amount"]
[1757360997680,0.66,215.81,215.72,26.0]
[1757360997894,0.66,215.81,215.76,26.0]
[1757360998098,0.66,215.81,215.77,36.24]
[1757360999196,4.63327987,215.83,215.77,40.87440195]
[1757360999396,5.29327987,215.83,215.77,40.87440195]
[1757360999703,4.63327987,215.83,215.77,36.24]
[1757360999881,0.66,215.82,215.77,36.24]
[1757361000221,13.59559401,215.8,215.64,43.18584256]
[1757361000394,18.56367027,215.76,215.66,40.85692849]
[1757361000588,0.66,215.75,215.67,0.51]
[1757361000904,13.59559401,215.74,215.66,8.39556322]
[1757361001111,0.66,215.73,215.67,36.22]
[1757361001303,14.25559401,215.76,215.68,31.14649851]
[1757361001488,14.25559401,215.76,215.69,0.51]
[1757361001681,14.25559401,215.76,215.68,26.0]
[1757361001682,13.59559401,215.75,215.68,26.0]
[1757361001922,5.62807626,215.74,215.69,36.22]
[1757361002077,14.25559401,215.76,215.69,36.22]
[1757361002479,4.96807626,215.74,215.7,36.22]
[1757361002708,0.66,215.73,215.7,36.22]
[1757361002883,18.56367027,215.76,215.7,36.22]
[1757361003088,14.25559401,215.76,215.7,36.22]
[1757361003303,14.25559401,215.76,215.71,4.63585369]
[1757361003602,0.66,215.75,215.7,36.22]
[1757361003779,0.66,215.74,215.67,26.0]
[1757361003978,5.62807626,215.73,215.68,36.22]
[1757361004193,0.66,215.72,215.68,36.22]
[1757361004396,13.59559401,215.7,215.61,0.51]
[1757361004602,4.96807626,215.66,215.57,4.6388644]
[1757361004812,4.96807626,215.66,215.58,0.51]
[1757361004813,5.62807626,215.66,215.58,0.51]
[1757361004985,0.66,215.66,215.62,26.0]
[1757361005189,0.66,215.68,215.63,36.22]
[1757361005381,0.66,215.68,215.62,26.51]
[1757361005602,4.63656226,215.68,215.62,26.0]
[1757361005808,0.66,215.67,215.63,36.22]
[1757361006311,0.66,215.66,215.63,36.22]
[1757361006494,9.60463852,215.68,215.63,36.22]
[1757361006808,0.66,215.66,215.64,0.03]
[1757361007011,4.96807626,215.69,215.64,0.03]
[1757361007314,13.59559401,215.69,215.64,0.54]
[1757361007499,0.66,215.69,215.64,0.03]
[1757361007701,5.62807626,215.69,215.64,0.03]
[1757361007890,4.96807626,215.68,215.64,0.03]
[1757361008308,0.66,215.67,215.64,0.03]
[1757361008700,0.66,215.66,215.64,0.03]
[1757361008882,13.59559401,215.68,215.64,0.03]
[1757361009088,14.25559401,215.68,215.64,0.03]
[1757361009409,0.66,215.67,215.64,0.03]
[1757361009798,0.66,215.66,215.64,0.03]
[1757361010908,0.71,215.65,215.64,0.03]
[1757361011095,0.71,215.65,215.64,36.25]
[1757361012090,0.71,215.67,215.64,0.03]
[1757361012291,0.71,215.66,215.65,36.22]
[1757361012687,0.71,215.69,215.65,36.22]
[1757361012895,13.59559401,215.71,215.65,36.22]
[1757361012896,14.30559401,215.71,215.66,4.63692849]
[1757361013119,29.23791207,215.74,215.66,4.63692849]
[1757361013120,0.77,215.74,215.67,0.51]
[1757361013913,5.40523092,215.74,215.67,0.51]
[1757361014093,5.40523092,215.74,215.66,16.22924973]
[1757361014689,4.69523092,215.74,215.66,16.22924973]
[1757361014920,0.71,215.73,215.66,16.22924973]
[1757361015105,14.30559401,215.72,215.65,26.0]
[1757361015417,0.71,215.71,215.66,36.22]
[1757361015712,0.71,215.7,215.66,36.22]
[1757361016101,0.71,215.69,215.64,0.03]
[1757361016306,0.71,215.69,215.65,36.22]
[1757361016505,0.71,215.68,215.65,36.22]
[1757361016691,0.71,215.67,215.65,36.22]
[1757361017005,0.71,215.69,215.65,36.22]
[1757361017210,0.71,215.68,215.65,36.22]
[1757361017409,0.71,215.67,215.65,36.22]
[1757361017621,4.63642912,215.69,215.65,36.22]
[1757361017795,0.71,215.68,215.65,40.85706726]
[1757361017997,5.34599717,215.71,215.65,40.85706726]
[1757361018502,14.30559401,215.7,215.66,36.22]
[1757361018813,16.77350608,215.68,215.65,0.2797]
[1757361018996,13.59559401,215.68,215.66,36.22]
[1757361019308,22.12021957,215.67,215.65,0.2797]
[1757361019630,16.77350608,215.66,215.65,0.2797]
[1757361020102,17.48350608,215.66,215.65,0.2797]
[1757361021835,22.12043457,215.66,215.65,0.2797]
[1757361024020,148.09559401,215.65,215.64,0.03]
[1757361024222,154.68661498,215.65,215.64,0.03]
[1757361024442,155.39661498,215.65,215.64,0.03]
[1757361024629,152.21870291,215.65,215.64,0.03]
[1757361024829,155.39704404,215.65,215.64,0.03]
[1757361025211,160.03418755,215.65,215.64,0.03]
[1757361026421,156.85575285,215.65,215.64,0.03]
[1757361026647,160.03366492,215.65,215.64,0.03]
[1757361030343,148.09559401,215.64,215.56,0.03]
[1757361030535,16.77350608,215.57,215.56,0.03]
[1757361031143,17.48350608,215.57,215.56,0.03]
[1757361031911,22.12237048,215.57,215.56,0.03]
[1757361032724,13.59559401,215.57,215.56,0.03]
[1757361033623,18.23445841,215.57,215.56,0.03]
[1757361033819,22.12237048,215.57,215.56,0.03]
[1757361037931,18.94445841,215.57,215.56,0.03]
[1757361038135,22.12237048,215.57,215.56,0.03]
[1757361041920,18.94445841,215.57,215.56,0.03]
[1757361042118,22.12237048,215.57,215.56,0.03]
[1757361043132,61.76307988,215.57,215.56,0.03]
[1757361043443,22.12237048,215.57,215.56,0.03]
[1757361043918,18.23445841,215.57,215.56,0.03]
[1757361044124,21.41237048,215.57,215.56,0.03]
[1757361044536,18.23445841,215.57,215.56,0.03]
[1757361044738,21.41237048,215.57,215.56,0.03]
[1757361045524,22.12237048,215.57,215.56,0.03]
[1757361047634,61.76444483,215.57,215.56,0.03]
[1757361048959,13.59559401,215.57,215.56,0.03]
[1757361049130,13.59559401,215.57,215.56,0.69]
[1757361049327,17.48350608,215.57,215.56,0.03]
[1757361049535,21.41237048,215.57,215.56,0.03]
[1757361050132,18.23445841,215.57,215.56,0.03]
[1757361050626,21.41237048,215.57,215.56,0.03]
[1757361051548,18.23445841,215.57,215.56,0.03]
[1757361051750,21.41237048,215.57,215.56,0.03]
[1757361052054,13.59559401,215.57,215.56,0.03]
[1757361052248,13.59559401,215.57,215.56,0.69]
[1757361052431,3.23791207,215.62,215.56,0.69]
[1757361052632,13.65559401,215.62,215.56,0.69]
[1757361053450,13.59559401,215.61,215.56,0.69]
[1757361053644,0.06,215.62,215.57,4.6388644]
[1757361053857,0.06,215.62,215.58,0.66]
[1757361054150,13.59559401,215.61,215.58,0.66]
[1757361054326,13.59559401,215.61,215.56,0.03]
[1757361054532,17.48350608,215.61,215.56,0.03]
[1757361054735,13.59559401,215.59,215.56,0.03]
[1757361055446,3.17791207,215.59,215.56,0.03]
[1757361055642,13.59559401,215.57,215.56,0.03]
[1757361055842,18.23445841,215.57,215.56,0.03]
[1757361056564,21.41237048,215.57,215.56,0.03]
[1757361056733,22.12237048,215.57,215.56,0.03]
[1757361056929,21.41237048,215.57,215.56,0.03]
[1757361057135,22.12237048,215.57,215.56,0.03]
[1757361059054,25.52966679,215.57,215.56,0.03]
[1757361061655,22.35175472,215.57,215.56,0.03]
[1757361061861,25.52966679,215.57,215.56,0.03]
[1757361063057,22.35175472,215.57,215.56,0.03]
[1757361063359,24.81966679,215.57,215.52,0.50861425]
[1757361063555,13.59559401,215.55,215.51,0.03]
[1757361063856,13.59559401,215.53,215.51,0.03]
[1757361065061,18.23540919,215.53,215.51,0.03]
[1757361065450,21.41332126,215.53,215.51,0.03]
[1757361065641,18.23540919,215.53,215.51,0.03]
[1757361065836,18.94540919,215.53,215.51,0.03]
[1757361066040,18.23540919,215.53,215.51,0.03]
[1757361066247,18.94540919,215.53,215.51,0.03]
[1757361066452,18.23540919,215.53,215.51,0.03]
[1757361066659,134.5,215.54,215.52,0.64]
[1757361067443,13.59559401,215.58,215.52,0.64]
[1757361067858,3.41969986,215.57,215.52,0.64]
[1757361068058,13.59559401,215.58,215.53,4.63972532]
[1757361068367,3.42073181,215.57,215.54,0.64]
[1757361068546,13.59559401,215.58,215.54,0.64]
[1757361068742,13.59559401,215.56,215.51,0.67]
[1757361069062,6.59836781,215.55,215.51,0.03]
[1757361069253,13.59559401,215.53,215.51,0.03]
[1757361069652,20.90355577,215.52,215.51,0.03]
[1757361070164,25.54349637,215.52,215.51,0.03]
[1757361070362,27.33959766,215.52,215.51,0.03]
[1757361071368,27.34959766,215.52,215.51,0.03]
[1757361072364,22.3755843,215.52,215.51,0.03]
[1757361072662,27.34959766,215.52,215.51,0.03]
[1757361079776,21.6555843,215.52,215.51,0.03]
[1757361080075,17.0156437,215.52,215.51,0.67]
[1757361080558,13.59559401,215.56,215.51,0.67]
[1757361080873,3.41815896,215.55,215.52,0.64]
[1757361081077,3.41815896,215.54,215.53,0.64]
[1757361081283,3.41815896,215.54,215.51,0.67]
[1757361081482,13.59559401,215.55,215.52,0.64]
[1757361081674,3.4185022,215.54,215.53,0.64]
[1757361082584,3.4185022,215.54,215.51,0.03]
[1757361082779,13.65559401,215.57,215.53,0.64]
[1757361082982,3.41792567,215.56,215.54,0.64]
[1757361083163,3.41792567,215.55,215.51,4.67005531]
[1757361083380,0.06,215.57,215.52,0.64]
[1757361083599,3.4178988,215.56,215.53,4.63972532]
[1757361083891,0.06,215.57,215.54,0.64]
[1757361084598,0.06,215.57,215.53,30.63972532]
[1757361084898,0.06,215.57,215.55,0.64]
[1757361085479,0.06,215.57,215.56,0.64]
[1757361087583,0.06,215.57,215.52,62.88]
[1757361087803,0.06,215.57,215.53,0.64]
[1757361087989,0.06,215.57,215.54,36.88]
[1757361088706,0.06,215.57,215.54,36.24]
[1757361088917,13.59559401,215.56,215.52,0.64]
[1757361089084,13.59559401,215.56,215.53,36.24]
[1757361090606,0.72,215.55,215.52,36.24]
[1757361090813,13.59559401,215.54,215.52,36.24]
[1757361091115,0.72,215.53,215.51,0.03]
[1757361091291,10.3339491,215.53,215.51,0.03]
[1757361091490,0.72,215.52,215.51,0.03]
[1757361091720,9.6139491,215.53,215.51,0.03]
[1757361091904,23.92912856,215.54,215.51,0.03]
[1757361093196,134.5,215.55,215.52,0.64]
[1757361093395,0.06,215.6,215.56,26.0]
[1757361093701,0.06,215.65,215.57,63.31666372]
[1757361093900,0.06,215.65,215.57,26.52]
[1757361094112,0.06,215.65,215.58,36.78]
[1757361094518,4.69714412,215.65,215.59,0.52]
[1757361094823,0.06,215.65,215.6,36.26]
[1757361095393,13.59559401,215.63,215.6,36.26]
[1757361097005,13.59559401,215.63,215.59,4.63839008]
[1757361097204,13.59559401,215.63,215.6,36.24]
[1757361097405,0.06,215.65,215.6,41.39821056]
[1757361097837,0.06,215.65,215.61,0.52]
[1757361098135,0.06,215.67,215.62,26.0]
[1757361098340,0.06,215.74,215.64,26.0]
[1757361098511,0.06,215.74,215.65,0.4]
[1757361098829,0.06,215.74,215.66,36.3]
[1757361099002,0.06,215.74,215.67,0.4]
[1757361099420,0.06,215.74,215.68,4.63649851]
[1757361100616,0.06,215.74,215.69,0.4]
[1757361101435,0.06,215.74,215.7,0.4]
[1757361101726,0.06,215.74,215.71,40.93585369]
[1757361101914,0.06,215.74,215.71,36.3]
[1757361103110,0.06,215.74,215.68,26.4]
[1757361103316,0.06,215.74,215.69,36.28]
[1757361104132,0.06,215.74,215.66,4.63675013]
[1757361104315,0.06,215.74,215.67,36.26]
[1757361104930,0.06,215.74,215.66,5.03675013]
[1757361105224,4.69520904,215.74,215.67,40.9166359]
[1757361105629,4.69520904,215.74,215.68,36.28]
[1757361105813,5.38520904,215.74,215.68,36.28]
[1757361107428,13.59559401,215.71,215.62,26.4]
[1757361107629,13.59559401,215.69,215.63,36.28]
[1757361107816,12.36889789,215.68,215.59,5.03833873]
[1757361108015,13.59559401,215.67,215.6,36.26]
[1757361108214,13.59559401,215.67,215.6,36.66]
[1757361108933,4.63692849,215.66,215.6,41.29816153]
[1757361109628,13.59559401,215.71,215.6,40.89816153]
[1757361109836,11.67889789,215.69,215.61,0.4]
[1757361110022,11.67889789,215.69,215.62,26.0]
[1757361110218,13.59559401,215.67,215.63,36.26]
[1757361110426,0.69,215.66,215.63,36.26]
[1757361111016,4.63700502,215.66,215.64,36.26]
[1757361111216,5.32700502,215.66,215.64,36.26]
[1757361111747,4.63700502,215.66,215.64,36.26]
[1757361111951,5.32700502,215.66,215.64,36.26]
[1757361113340,4.63700502,215.66,215.64,36.26]
[1757361113842,13.59559401,215.67,215.64,36.26]
[1757361114024,18.23234706,215.67,215.64,36.26]
[1757361114229,18.92234706,215.67,215.64,36.26]
[1757361114428,18.23234706,215.67,215.64,36.26]
[1757361114737,0.69,215.66,215.64,36.26]
[1757361115532,4.63714351,215.65,215.64,36.22]
[1757361117126,14.28559401,215.65,215.64,36.22]
[1757361117539,19.25153413,215.65,215.64,36.22]
[1757361117735,19.25153413,215.65,215.63,0.03]
[1757361117936,0.69,215.64,215.63,0.03]
[1757361118245,19.25153413,215.64,215.63,0.03]
[1757361118934,14.28559401,215.64,215.63,0.03]
[1757361120128,18.92295257,215.64,215.63,0.03]
[1757361121338,23.88889269,215.64,215.63,0.03]
[1757361122841,5.32563879,215.72,215.63,0.43]
[1757361123145,0.69,215.75,215.65,26.0]
[1757361123345,13.65559401,215.74,215.66,0.4]
[1757361123548,13.65559401,215.74,215.67,36.24]
[1757361123737,13.65559401,215.74,215.68,36.64]
[1757361123938,0.06,215.74,215.71,26.0]
[1757361124247,0.06,215.74,215.72,36.3]
[1757361124835,0.06,215.74,215.72,41.33553224]
[1757361125022,0.06,215.74,215.72,36.7]
[1757361125233,0.06,215.74,215.72,36.3]
[1757361127042,0.06,215.74,215.72,40.93563042]
[1757361127244,0.06,215.74,215.72,36.3]
[1757361127458,0.06,215.74,215.68,0.4]
[1757361127751,0.06,215.74,215.69,40.93620007]
[1757361128251,0.06,215.74,215.72,0.2796]
[1757361128554,0.06,215.74,215.73,36.28]
[1757361131351,0.06,215.74,215.72,0.2796]
[1757361131352,12.42644438,215.74,215.72,0.2796]
[1757361131551,12.42644438,215.74,215.72,36.5396]
[1757361131758,165.09746229,215.73,215.72,0.2796]
[1757361132455,26.75513887,215.73,215.72,0.2796]
[1757361132633,30.16257105,215.73,215.72,0.2796]
[1757361134767,148.09559401,215.72,215.63,36.27]
[1757361135067,13.59559401,215.65,215.63,36.27]
[1757361135366,7.82412096,215.66,215.63,36.27]
[1757361135367,13.59559401,215.66,215.63,36.27]
[1757361135567,14.29559401,215.66,215.63,36.27]
[1757361135767,13.59559401,215.66,215.63,36.27]
[1757361136075,5.33714351,215.65,215.63,36.27]
[1757361136276,4.63714351,215.65,215.63,36.27]
[1757361136443,14.29559401,215.64,215.63,36.27]
[1757361136758,13.59559401,215.64,215.63,36.27]
[1757361137081,14.29559401,215.64,215.63,36.27]
[1757361138146,18.93295257,215.64,215.63,36.27]
[1757361139248,13.59559401,215.64,215.63,36.27]
[1757361139851,13.59559401,215.67,215.63,36.27]
[1757361140278,14.29559401,215.67,215.63,36.27]
[1757361141353,18.93237175,215.67,215.63,36.27]
[1757361142974,4.63645145,215.69,215.64,0.4]
[1757361143163,13.59559401,215.68,215.63,40.90752525]
[1757361145259,134.5,215.7,215.65,5.03708331]
[1757361146080,135.2,215.7,215.65,4.63708331]
[1757361146585,134.5,215.7,215.66,0.4]
[1757361146798,134.5,215.7,215.65,16.2299421]
[1757361146799,134.5,215.7,215.67,36.62]
[1757361146964,134.5,215.7,215.68,4.63649851]
[1757361147466,0.06,215.74,215.69,0.4]
[1757361147672,0.06,215.74,215.7,0.4]
[1757361147998,0.06,215.74,215.71,36.62]
[1757361149096,0.06,215.74,215.72,4.63563879]
[1757361150992,0.06,215.74,215.73,5.0354239]
[1757361152908,0.06,215.74,215.73,30.6354239]
[1757361153206,0.06,215.74,215.73,66.8554239]
[1757361158493,0.06,215.74,215.73,30.6354239]
[1757361158678,0.06,215.74,215.73,66.8354239]
[1757361160193,0.06,215.74,215.73,26.0]
[1757361160413,0.75,215.74,215.65,0.4]
[1757361160702,0.75,215.74,215.69,26.0]
[1757361160883,0.69,215.73,215.7,36.2]
[1757361161400,0.69,215.72,215.7,36.2]
[1757361161706,0.06,215.74,215.7,36.2]
[1757361161890,0.69,215.73,215.7,40.83602243]
[1757361162206,0.69,215.72,215.7,40.83602243]
[1757361162680,0.06,215.74,215.72,0.03]
[1757361162877,0.06,215.74,215.72,36.23]
[1757361163280,0.69,215.73,215.72,36.23]
[1757361164990,0.06,215.74,215.72,40.86563879]
[1757361165391,0.06,215.74,215.72,41.26563879]
[1757361165583,0.06,215.74,215.72,40.86563879]
[1757361165783,0.06,215.74,215.73,0.4]
[1757361166199,0.06,215.74,215.73,31.0354239]
[1757361169595,0.06,215.74,215.73,5.0354239]
[1757361170404,0.06,215.77,215.76,26.0]
[1757361170799,0.06,215.77,215.76,62.6]
[1757361171712,0.06,215.77,215.76,62.2]
[1757361171882,0.06,215.77,215.76,66.83477938]
[1757361182123,0.06,215.77,215.76,30.63477938]
[1757361182318,0.06,215.77,215.76,66.81477938]
[1757361183904,0.06,215.77,215.76,67.21477938]
[1757361184296,0.06,215.8,215.76,79.35790136]
[1757361184498,0.06,215.82,215.77,0.4]
[1757361184794,0.06,215.82,215.81,26.0]
[1757361184994,0.06,215.82,215.81,62.18]
[1757361186320,0.06,215.82,215.81,66.81370557]
[1757361186695,134.5,215.9,215.81,78.3979695]
[1757361186903,0.69,215.9,215.82,0.4]
[1757361187117,0.69,215.9,215.86,26.0]
[1757361187327,0.69,215.93,215.87,36.58]
[1757361187822,0.69,215.93,215.87,36.18]
[1757361188011,16.77269831,216.0,215.87,36.18]
[1757361188012,3.1771043,215.99,215.87,36.18]
[1757361188208,0.69,215.92,215.87,36.18]
[1757361188421,0.69,215.91,215.88,4.63220307]
[1757361188621,4.6306601,215.96,215.89,36.18]
[1757361188809,0.69,215.9,215.89,36.18]
[1757361189317,0.69,215.9,215.86,26.0]
[1757361189520,0.69,215.89,215.87,36.18]
[1757361189724,0.69,215.88,215.87,36.18]
[1757361189916,13.59559401,215.93,215.87,36.18]
[1757361190120,0.66,215.92,215.87,36.18]
[1757361190425,0.66,215.91,215.88,36.18]
[1757361190608,0.66,215.9,215.83,30.63324422]
[1757361190809,0.66,215.89,215.84,36.18]
[1757361191005,0.66,215.88,215.84,36.18]
[1757361191211,0.66,215.87,215.86,26.0]
[1757361191428,0.66,215.87,215.86,62.18]
[1757361191725,0.66,215.87,215.86,36.18]
[1757361193935,0.66,215.87,215.86,36.16]
[1757361194312,0.66,215.87,215.81,29.71256415]
[1757361194501,18.55076385,215.85,215.72,0.03]
[1757361194705,4.95516984,215.79,215.73,13.90530487]
[1757361194932,13.59559401,215.81,215.72,4.66560203]
[1757361194933,5.61516984,215.78,215.72,4.66560203]
[1757361195240,5.61516984,215.77,215.72,0.03]
[1757361195409,5.61516984,215.77,215.73,36.16]
[1757361195608,0.66,215.76,215.73,36.16]
[1757361195911,0.66,215.75,215.73,36.16]
[1757361196117,0.66,215.74,215.73,36.16]
[1757361197239,0.66,215.74,215.72,0.03]
[1757361197441,0.66,215.74,215.73,36.16]
[1757361200333,10.25045097,215.74,215.72,0.03]
[1757361200533,18.55076385,215.73,215.72,0.03]
[1757361201057,19.21076385,215.73,215.72,0.03]
[1757361201562,0.66,215.76,215.72,40.8456213]
[1757361201861,0.06,215.82,215.72,66.8456213]
[1757361202168,0.66,215.81,215.75,26.0]
[1757361202358,0.06,215.82,215.79,26.0]
[1757361202528,0.06,215.82,215.8,36.18]
[1757361202859,0.72,215.82,215.8,36.18]
[1757361203735,0.72,215.82,215.8,40.8137811]
[1757361203935,0.06,215.82,215.8,40.8137811]
[1757361204245,0.72,215.82,215.8,40.8137811]
[1757361204757,0.72,215.82,215.8,36.18]
[1757361205052,0.72,215.82,215.8,40.81391973]
[1757361205250,0.72,215.82,215.8,36.18]
[1757361205430,0.72,215.82,215.8,40.81391366]
[1757361205431,0.66,215.81,215.8,40.81391366]
[1757361206048,0.06,215.82,215.8,40.81391366]
[1757361206856,0.66,215.81,215.8,40.81391366]
[1757361207051,0.66,215.81,215.8,4.63391366]
[1757361207259,0.66,215.81,215.8,40.81391366]
[1757361208047,0.06,215.82,215.8,40.81391366]
[1757361208238,0.72,215.82,215.8,40.81391366]
[1757361209364,0.72,215.82,215.81,36.18]
[1757361214375,0.72,215.82,215.78,4.63424554]
[1757361214574,0.06,215.82,215.77,26.0]
[1757361214873,0.66,215.81,215.79,36.16]
[1757361215974,0.66,215.8,215.79,36.16]
[1757361216373,0.06,215.82,215.79,40.7940872]
[1757361217149,0.72,215.82,215.79,40.7940872]
[1757361217570,0.06,215.82,215.79,40.8240872]
[1757361217754,0.72,215.82,215.79,40.8240872]
[1757361218271,0.06,215.82,215.79,52.40942479]
[1757361218476,0.06,215.82,215.81,26.0]
[1757361218674,0.06,215.82,215.81,62.16]
[1757361218976,0.06,215.85,215.81,63.11604466]
[1757361219151,0.06,215.85,215.82,0.4]
[1757361219358,0.06,215.85,215.83,62.16]
[1757361219558,0.06,215.85,215.84,0.4]
[1757361219774,0.06,215.85,215.84,2.25309583]
[1757361220158,0.06,215.85,215.84,6.88615735]
[1757361222853,0.06,215.87,215.86,26.0]
[1757361223072,0.06,215.87,215.86,62.16]
[1757361223373,148.4913414,216.01,215.86,62.16]
[1757361223374,0.65,215.96,215.86,62.56]
[1757361223576,0.65,215.96,215.89,26.0]
[1757361223761,0.65,215.96,215.93,26.0]
[1757361224075,0.65,215.96,215.94,40.79080534]
[1757361224860,148.09559401,216.01,215.94,36.16]
[1757361224861,0.65,215.95,215.94,36.16]
[1757361225553,0.65,215.95,215.93,30.63104344]
[1757361225757,0.65,215.95,215.94,36.16]
[1757361226595,0.65,215.95,215.93,26.0]
[1757361226884,13.59559401,215.98,215.88,4.63220307]
[1757361227077,13.59559401,215.98,215.91,26.0]
[1757361227277,0.65,215.97,215.91,26.0]
[1757361227462,0.65,215.96,215.91,26.0]
[1757361227662,0.65,215.95,215.92,36.16]
[1757361227967,0.65,215.94,215.92,36.16]
[1757361228764,0.65,215.94,215.93,36.16]
[1757361229687,0.65,215.94,215.93,36.14]
[1757361229888,0.65,215.94,215.91,26.0]
[1757361230086,0.65,215.94,215.92,36.14]
[1757361230288,0.65,215.93,215.92,36.14]
[1757361231478,0.65,215.95,215.91,30.63150324]
[1757361231679,0.65,215.94,215.92,36.14]
[1757361231988,0.65,215.93,215.92,36.14]
[1757361232168,0.65,215.95,215.92,40.77134494]
[1757361232370,0.65,215.94,215.92,40.77134494]
[1757361232990,0.65,215.94,215.93,36.14]
[1757361236099,13.59559401,215.96,215.93,36.14]
[1757361236398,0.71,215.97,215.93,36.14]
[1757361236399,0.71,215.97,215.93,40.77109094]
[1757361236699,0.65,215.96,215.93,40.77109094]
[1757361237277,0.65,215.95,215.93,40.77109094]
[1757361237496,0.71,215.97,215.93,36.14]
[1757361237801,0.65,215.95,215.93,36.14]
[1757361239304,0.71,215.97,215.93,36.14]
[1757361239483,0.71,215.97,215.93,40.77109991]
[1757361240302,0.06,215.97,215.93,40.77109991]
[1757361240498,0.71,215.97,215.93,40.77109991]
[1757361240802,0.65,215.96,215.94,36.14]
[1757361241004,0.65,215.95,215.94,36.14]
[1757361241204,0.65,215.95,215.88,11.58015404]
[1757361241205,0.65,215.95,215.88,26.0]
[1757361241406,4.63113045,215.93,215.89,36.14]
[1757361241600,0.65,215.92,215.89,36.14]
[1757361243087,0.65,215.92,215.88,30.6321617]
[1757361243400,0.65,215.94,215.9,36.14]
[1757361243587,0.65,215.93,215.9,36.14]
[1757361243789,13.59559401,215.95,215.9,36.14]
[1757361244310,0.65,215.94,215.9,36.14]
[1757361244492,13.59559401,215.95,215.9,36.14]
[1757361244493,0.65,215.93,215.9,36.14]
[1757361244690,13.59559401,215.95,215.91,36.14]
[1757361244691,0.65,215.92,215.91,36.14]
[1757361245305,5.28099426,215.94,215.91,36.14]
[1757361245605,18.87672446,215.93,215.92,36.14]
[1757361245806,14.24559401,215.93,215.92,36.14]
[1757361245993,134.5,215.96,215.92,36.14]
[1757361246181,134.5,215.96,215.92,40.77128195]
[1757361246386,134.5,215.96,215.93,0.4]
[1757361246583,134.5,215.96,215.94,36.14]
[1757361247812,134.5,215.96,215.95,36.14]
[1757361248012,0.06,215.97,215.93,4.63113045]
[1757361248189,0.06,215.97,215.94,36.14]
[1757361250108,0.06,215.97,215.95,4.63070155]
[1757361250309,0.06,215.97,215.96,36.14]
[1757361252515,0.06,215.97,215.96,40.77048712]
[1757361253301,0.06,215.97,215.96,36.14]
[1757361255012,0.76,215.97,215.96,36.14]
[1757361255920,0.06,215.97,215.96,36.14]
[1757361256309,0.76,215.97,215.96,36.12]
[1757361257805,18.98586673,215.97,215.96,36.12]
[1757361258403,0.76,215.97,215.96,36.12]
[1757361261713,0.06,215.97,215.96,40.75048712]
[1757361262722,0.06,215.97,215.96,36.12]
[1757361263607,0.76,215.97,215.96,36.12]
[1757361264215,5.39027272,215.97,215.93,26.0]
[1757361264420,5.39027272,215.97,215.9,11.57908155]
[1757361264421,13.59559401,215.95,215.94,36.12]
[1757361264737,17.74218177,215.95,215.94,36.12]
[1757361267119,134.5,215.94,215.87,0.03]
[1757361267314,13.59559401,215.92,215.88,36.12]